fUST/lending_fUST_20240301
["ID","MTS","AMOUNT","RATE_DAILY","PERIOD"]
[315945601,1709298647954,-500.0,0.00020547,2]
[315945603,1709298647964,-500.0,0.00020547,2]
[315945605,1709298647974,-500.0,0.00020547,2]
[315945607,1709298647984,-500.0,0.00020547,2]
[315945609,1709298647994,-500.0,0.00020547,2]
[315945611,1709298648004,-500.0,0.00020547,2]
[315945613,1709298648014,-500.0,0.00020547,2]
[315945616,1709298648024,-500.0,0.00020547,2]
[315945618,1709298648033,-500.0,0.00020547,2]
[315945620,1709298648043,-500.0,0.00020547,2]
[315945622,1709298648052,-500.0,0.00020547,2]
[315945624,1709298648062,-500.0,0.00020547,2]
[315945626,1709298648071,-627.48822358,0.00020547,2]
[315945628,1709298648082,-500.0,0.00020547,2]
[315945630,1709298648091,-500.0,0.00020547,2]
[315945632,1709298648101,-500.0,0.00020547,2]
[315945634,1709298648114,-501.14268804,0.00020547,2]
[315945636,1709298648124,-500.0,0.00020547,2]
[315945638,1709298648133,-500.0,0.00020547,2]
[315945640,1709298648143,-500.0,0.00020547,2]
[315945642,1709298648152,-500.0,0.00020547,2]
[315945645,1709298648162,-502.20378943,0.00020547,2]
[315945647,1709298648171,-500.0,0.00020547,2]
[315945649,1709298648181,-500.0,0.00020547,2]
[315945651,1709298648190,-500.0,0.00020547,2]
[315945653,1709298648199,-500.0,0.00020547,2]
[315945655,1709298648214,-500.0,0.00020547,2]
[315945657,1709298648224,-500.0,0.00020547,2]
[315945659,1709298648234,-500.0,0.00020547,2]
[315945661,1709298648243,-500.0,0.00020547,2]
[315945663,1709298648252,-507.0068055,0.00020547,2]
[315945665,1709298648261,-588.61429345,0.00020547,2]
[315945667,1709298648270,-500.0,0.00020547,2]
[315945669,1709298648280,-500.0,0.00020547,2]
[315945671,1709298648291,-500.0,0.00020547,2]
[315945673,1709298648300,-500.0,0.00020547,2]
[315945675,1709298648310,-500.0,0.00020547,2]
[315945677,1709298648320,-500.0,0.00020547,2]
[315945679,1709298648330,-613.21,0.00020547,2]
[315945681,1709298648339,-613.21,0.00020547,2]
[315945683,1709298648349,-500.0,0.00020547,2]
[315945685,1709298648358,-500.0,0.00020547,2]
[315945687,1709298648367,-500.0,0.00020547,2]
[315945689,1709298648376,-500.0,0.00020547,2]
[315945691,1709298648385,-500.0,0.00020547,2]
[315945693,1709298648394,-500.0,0.00020547,2]
[315945695,1709298648403,-500.0,0.00020547,2]
[315945697,1709298648412,-500.0,0.00020547,2]
[315945699,1709298648421,-500.0,0.00020547,2]
[315945701,1709298648430,-500.0,0.00020547,2]
[315945703,1709298648439,-500.0,0.00020547,2]
[315945705,1709298648448,-500.0,0.00020547,2]
[315945707,1709298648458,-565.07,0.00020547,2]
[315945709,1709298648467,-565.07,0.00020547,2]
[315945711,1709298648476,-500.0,0.00020547,2]
[315945713,1709298648486,-500.0,0.00020547,2]
[315945715,1709298648495,-211.37,0.00020547,2]
[315945717,1709298648504,-500.0,0.00020547,2]
[315945719,1709298648514,-629.30936943,0.00020547,2]
[315945721,1709298648524,-500.0,0.00020547,2]
[315945723,1709298648533,-500.0,0.00020547,2]
[315945725,1709298648542,-204.58207081,0.00020547,2]
[315945727,1709298648552,-500.0,0.00020547,2]
[315945729,1709298648561,-500.0,0.00020547,2]
[315945731,1709298648570,-500.0,0.00020547,2]
[315945733,1709298648580,-500.0,0.00020547,2]
[315945735,1709298648589,-502.15746347,0.00020547,2]
[315945737,1709298648599,-341.0,0.00020547,2]
[315945739,1709298648608,-500.0,0.00020547,2]
[315945741,1709298648618,-500.0,0.00020547,2]
[315945743,1709298648628,-500.0,0.00020547,2]
[315945745,1709298648637,-500.0,0.00020547,2]
[315945747,1709298648646,-500.0,0.00020547,2]
[315945748,1709298648656,-500.0,0.00020547,2]
[315945750,1709298648665,-500.0,0.00020547,2]
[315945752,1709298648675,-627.16,0.00020547,2]
[315945754,1709298648684,-500.0,0.00020547,2]
[315945756,1709298648693,-500.0,0.00020547,2]
[315945758,1709298648703,-500.0,0.00020547,2]
[315945760,1709298648712,-500.0,0.00020547,2]
[315945762,1709298648721,-500.0,0.00020547,2]
[315945764,1709298648731,-500.0,0.00020547,2]
[315945766,1709298648740,-500.0,0.00020547,2]
[315945768,1709298648750,-500.0,0.00020547,2]
[315945770,1709298648760,-500.0,0.00020547,2]
[315945772,1709298648771,-500.0,0.00020547,2]
[315945774,1709298648780,-635.25741391,0.00020547,2]
[315945776,1709298648789,-500.0,0.00020547,2]
[315945778,1709298648798,-500.0,0.00020547,2]
[315945780,1709298648807,-500.0,0.00020547,2]
[315945782,1709298648816,-500.0,0.00020547,2]
[315945784,1709298648825,-500.0,0.00020547,2]
[315945786,1709298648836,-500.0,0.00020547,2]
[315945788,1709298648846,-1869.67,0.00020547,2]
[315945790,1709298648855,-1869.67,0.00020547,2]
[315945792,1709298648864,-500.0,0.00020547,2]
[315945794,1709298648874,-500.0,0.00020547,2]
[315945796,1709298648883,-500.0,0.00020547,2]
[315945798,1709298648893,-500.0,0.00020547,2]
[315945800,1709298648902,-500.0,0.00020547,2]
[315945802,1709298648912,-621.44,0.00020547,2]
[315945804,1709298648920,-621.44,0.00020547,2]
[315945805,1709298648930,-500.0,0.00020547,2]
[315945808,1709298648940,-500.0,0.00020547,2]
[315945809,1709298648949,-500.0,0.00020547,2]
[315945811,1709298648958,-554.92242422,0.00020547,2]
[315945813,1709298648967,-500.0,0.00020547,2]
[315945815,1709298648977,-501.88047804,0.00020547,2]
[315945817,1709298648986,-3022.7,0.00020547,2]
[315945819,1709298648995,-3022.7,0.00020547,2]
[315945821,1709298649004,-500.0,0.00020547,2]
[315945823,1709298649013,-500.0,0.00020547,2]
[315945825,1709298649026,-500.0,0.00020547,2]
[315945827,1709298649036,-500.0,0.00020547,2]
[315945829,1709298649046,-589.35164637,0.00020547,2]
[315945831,1709298649056,-1000.0,0.00020728,2]
[315945833,1709298649066,-1000.0,0.00020739,2]
[315945835,1709298649076,-1000.0,0.00020764,2]
[315945838,1709298649086,-1000.0,0.00020765,2]
[315945840,1709298649097,-1004.76021255,0.00020766,2]
[315945841,1709298649106,-151.0,0.00020766,2]
[315945843,1709298649118,-269.81429331,0.00020766,2]
[315945845,1709298649128,-908.41605464,0.00020786,2]
[315945847,1709298649138,-1000.0,0.00020811,2]
[315945849,1709298649148,-1000.0,0.00020816,2]
[315945851,1709298649158,-510.25132104,0.0002082,2]
[315945853,1709298649167,-1000.0,0.00020822,2]
[315945855,1709298649176,-1000.0,0.0002087,2]
[315945857,1709298649186,-500.0,0.00020892,2]
[315945859,1709298649195,-500.0,0.00020892,2]
[315945861,1709298649204,-500.0,0.00020892,2]
[315945863,1709298649214,-151.0,0.00020893,2]
[315945865,1709298649226,-500.0,0.00020893,2]
[315945867,1709298649236,-500.0,0.00020893,2]
[315945869,1709298649246,-500.0,0.00020893,2]
[315945870,1709298649255,-1000.0,0.00020893,2]
[315945872,1709298649264,-565.07,0.00020896,2]
[315945874,1709298649273,-500.0,0.00020896,2]
[315945876,1709298649283,-500.0,0.00020896,2]
[315945878,1709298649292,-500.0,0.00020896,2]
[315945880,1709298649302,-500.0,0.00020896,2]
[315945882,1709298649312,-500.0,0.00020896,2]
[315945884,1709298649321,-1869.67,0.00020896,2]
[315945886,1709298649331,-621.44,0.00020896,2]
[315945887,1709298649341,-500.0,0.00020897,2]
[315945888,1709298649351,-500.0,0.00020897,2]
[315945889,1709298649360,-523.03,0.00020897,2]
[315945890,1709298649370,-500.0,0.00020897,2]
[315945891,1709298649379,-500.0,0.00020897,2]
[315945892,1709298649388,-613.21,0.00020897,2]
[315945893,1709298649398,-179.99858119,0.00020897,2]
[315945894,1709298649407,-500.0,0.00020897,2]
[315945895,1709298649416,-3022.7,0.00020897,2]
[315945896,1709298649425,-151.0,0.00020898,2]
[315945897,1709298649434,-4188.56069599,0.00020898,2]
[315945898,1709298649444,-151.0,0.000209,2]
[315945899,1709298649453,-300.0,0.000209,9]
[315945900,1709298649462,-5332.62877402,0.000209,2]
[315945901,1709298649472,-691.5902337,0.000209,2]
[315945902,1709298649482,-1000.0,0.000209,2]
[315945903,1709298649491,-1000.0,0.00020913,2]
[315945904,1709298649500,-1000.0,0.00020944,2]
[315945905,1709298649509,-1000.0,0.00020953,2]
[315945906,1709298649518,-1000.0,0.00020965,2]
[315945907,1709298649527,-1000.0,0.00020972,2]
[315945908,1709298649536,-500.0,0.00020975,2]
[315945910,1709298649546,-500.0,0.00020976,2]
[315945911,1709298649555,-500.0,0.00020976,2]
[315945913,1709298649565,-500.0,0.00020976,2]
[315945915,1709298649575,-150.19,0.00020976,2]
[315945917,1709298649585,-500.0,0.00020976,2]
[315945919,1709298649595,-500.0,0.00020976,2]
[315945921,1709298649604,-500.0,0.00020976,2]
[315945923,1709298649614,-500.0,0.00020976,2]
[315945925,1709298649623,-500.0,0.00020976,2]
[315945927,1709298649632,-500.0,0.00020976,2]
[315945929,1709298649641,-8232.02435619,0.00020977,2]
[315945931,1709298649651,-500.0,0.00020994,2]
[315945933,1709298649659,-500.0,0.00020994,2]
[315945935,1709298649669,-613.21,0.00020994,2]
[315945937,1709298649679,-151.0,0.00020994,2]
[315945938,1709298649688,-500.0,0.00020994,2]
[315945940,1709298649698,-565.07,0.00020994,2]
[315945943,1709298649711,-500.0,0.00020994,2]
[315945944,1709298649720,-500.0,0.00020994,2]
[315945946,1709298649730,-500.0,0.00020994,2]
[315945948,1709298649739,-500.0,0.00020994,2]
[315945950,1709298649749,-1869.67,0.00020994,2]
[315945952,1709298649759,-621.44,0.00020994,2]
[315945954,1709298649768,-3022.7,0.00020994,2]
[315945957,1709298649778,-500.0,0.00020996,2]
[315945958,1709298649787,-500.0,0.00020996,2]
[315945961,1709298649796,-326.67992232,0.00020996,2]
[315945963,1709298649812,-173.32007768,0.00020996,2]
[315945965,1709298649822,-426.54,0.00020997,2]
[315945967,1709298649832,-500.0,0.00020997,2]
[315945969,1709298649843,-239.83,0.00020997,2]
[315945971,1709298649852,-27.21259719,0.00020997,2]
[315948699,1709298949664,1001.09211031,0.0003,120]
[315948701,1709298959646,1212.24243636,0.0003,120]
[315948705,1709298972851,2425.58862547,0.0003,120]
[315948709,1709299241320,1000.0,0.00016,2]
[315948712,1709299304601,7239.70401871,0.00016,2]
[315948713,1709299308886,7239.70401871,0.00016,2]
[315948714,1709299346894,4022.05778817,0.00016,2]
[315948715,1709299366890,2095.49210764,0.00016,2]
[315948716,1709299386919,2095.49210764,0.00016,2]
[315948717,1709299406972,2095.49210764,0.00016,2]
[315948718,1709299424932,2095.49210764,0.00016,2]
[315948719,1709299440999,2095.49210764,0.00016,2]
[315948720,1709299455374,2095.49210764,0.00016,2]
[315948721,1709299471374,2095.49210764,0.00016,2]
[315948722,1709299493370,2095.49210764,0.00016,2]
[315948723,1709299510784,151.66681833,0.0001592,2]
[315948724,1709299511436,2095.49210764,0.00016,2]
[315948725,1709299526681,2095.49210764,0.00016,2]
[315948726,1709299563004,764.19097974,0.00016,2]
[315948728,1709299661912,168.73127535,0.0001592,2]
[315948729,1709299672329,394.1878927,0.00015669,2]
[315948730,1709299677417,-155.05271792,0.00016295,2]
[315948731,1709299677438,-387.77767949,0.00016295,2]
[315948732,1709299677458,-744.67090207,0.00016295,2]
[315948733,1709299677477,-155.05271792,0.00016295,2]
[315948734,1709299677499,-538.36619156,0.00016295,2]
[315948735,1709299677522,-1604.23405483,0.00016295,2]
[315948736,1709299677542,-557.5480976,0.00016296,2]
[315948737,1709299677564,-155.723056,0.00016296,2]
[315948738,1709299677584,-15234.87744507,0.00016296,2]
[315948739,1709299677610,-155.05271792,0.00016297,2]
[315948740,1709299677637,-155.05271792,0.00016297,2]
[315948741,1709299677662,-8010.05157774,0.00016297,2]
[315948742,1709299677684,-2111.9879456,0.00016298,2]
[315948743,1709299677711,-155.06047358,0.00016298,2]
[315948744,1709299677737,-155.06047358,0.00016299,2]
[315948745,1709299677764,-428.57901896,0.00016299,2]
[315948746,1709299677789,-155.06047358,0.00016299,2]
[315948747,1709299677814,-155.06047358,0.00016299,2]
[315948748,1709299677836,-155.06047358,0.000163,2]
[315948749,1709299677861,-527.85698207,0.000163,2]
[315948750,1709299677886,-155.06047358,0.000163,2]
[315948751,1709299677913,-290.08429773,0.000163,2]
[315948752,1709299677936,-155.06047358,0.000163,2]
[315948753,1709299677962,-5977.60856454,0.00016301,2]
[315948761,1709299831810,-400.82246414,0.00016284,2]
[315948762,1709299831820,-155.05271792,0.00016284,2]
[315948763,1709299831830,-155.05271792,0.00016284,2]
[315948764,1709299831840,-155.05271792,0.00016285,2]
[315948765,1709299831849,-155.05271792,0.00016286,2]
[315948766,1709299831859,-179.57077703,0.00016287,2]
[315948767,1709299831869,-1360.48283844,0.0001629,2]
[315948768,1709299831882,-399.55349514,0.0001629,2]
[315948769,1709299831894,-4751.54910424,0.0001629,2]
[315948770,1709299831906,-402.02014618,0.0001629,2]
[315948771,1709299831916,-155.05271792,0.00016294,2]
[315948772,1709299831926,-2.06838386,0.00016301,2]
[315948773,1709299831935,-155.19710032,0.00016301,2]
[315948774,1709299831945,-478.831743,0.00016741,2]
[315948775,1709299831954,-340.2397206,0.00016878,2]
[315948776,1709299831963,-8628.2886283,0.00017478,2]
[315948777,1709299831972,-155.58713026,0.00017663,2]
[315948778,1709299831982,-1347.52171294,0.00017755,2]
[315948779,1709299831991,-186.65533944,0.00017797,2]
[315948780,1709299832001,-633.61736843,0.00017897,2]
[315948781,1709299832010,-155.723056,0.00019177,2]
[315948782,1709299832019,-538.36619156,0.00019177,2]
[315948783,1709299832029,-155.05271792,0.00019177,2]
[315948785,1709299832038,-290.08429773,0.00019177,2]
[315948787,1709299832047,-164.109383,0.00019178,2]
[315948789,1709299832057,-180.345813,0.00019178,2]
[315948792,1709299832068,-557.5480976,0.00019997,2]
[315948793,1709299832078,-8010.05157774,0.00019997,2]
[315948795,1709299832087,-15234.87744507,0.00019997,2]
[315948797,1709299832097,-5445.53710548,0.00019998,2]
[315948800,1709299832107,-5299.61328239,0.0002,2]
[315948802,1709299832118,-2770.79919147,0.00020189,5]
[315948804,1709299832128,-167.77627497,0.00020189,2]
[315948806,1709299832140,-182.3046745,0.00020192,2]
[315948808,1709299832150,-154.6121894,0.00020192,2]
[315948810,1709299832160,-153.0,0.00020192,2]
[315948812,1709299832170,-153.0,0.00020192,2]
[315948813,1709299832180,-153.0,0.00020192,2]
[315948815,1709299832189,-153.0,0.00020192,2]
[315948817,1709299832200,-153.0,0.00020192,2]
[315948819,1709299832210,-153.0,0.00020192,2]
[315948822,1709299832220,-3208.96,0.00020279,3]
[315948824,1709299832230,-4889.25,0.00020289,3]
[315948825,1709299832240,-4620.9,0.00020289,3]
[315948827,1709299832249,-3850.75,0.00020289,3]
[315948829,1709299832259,-8336.62892699,0.00020299,2]
[315948831,1709299832268,-1750.69207466,0.00020299,2]
[315948834,1709299832278,-180.345813,0.000203,2]
[315948835,1709299832287,-500.0,0.00020313,2]
[315948837,1709299832297,-500.0,0.00020313,2]
[315948839,1709299832306,-500.0,0.00020313,2]
[315948841,1709299832315,-977.77551675,0.00020313,2]
[315948843,1709299832325,-500.0,0.00020313,2]
[315948845,1709299832334,-977.77551675,0.00020313,2]
[315948847,1709299832343,-500.0,0.00020313,2]
[315948849,1709299832352,-166.67245786,0.00020313,2]
[315948851,1709299832361,-500.0,0.00020313,2]
[315948853,1709299832371,-977.77551675,0.00020313,2]
[315948855,1709299832380,-500.0,0.00020313,2]
[315948857,1709299832389,-500.0,0.00020313,2]
[315948859,1709299832398,-977.77551675,0.00020313,2]
[315948861,1709299832406,-500.0,0.00020313,2]
[315948863,1709299832416,-268.6806967,0.00020313,2]
[315948865,1709299832425,-977.77551675,0.00020313,2]
[315948867,1709299832434,-500.0,0.00020313,2]
[315948869,1709299832444,-977.77551675,0.00020313,2]
[315948871,1709299832454,-500.0,0.00020313,2]
[315948873,1709299832463,-500.0,0.00020313,2]
[315948875,1709299832473,-977.77551675,0.00020313,2]
[315948877,1709299832482,-500.0,0.00020313,2]
[315948879,1709299832492,-977.77551675,0.00020313,2]
[315948881,1709299832501,-500.0,0.00020313,2]
[315948883,1709299832511,-977.77551675,0.00020313,2]
[315948885,1709299832522,-500.0,0.00020313,2]
[315948887,1709299832531,-977.77551675,0.00020313,2]
[315948889,1709299832540,-500.0,0.00020313,2]
[315948891,1709299832551,-977.77551675,0.00020313,2]
[315948893,1709299832561,-500.0,0.00020313,2]
[315948895,1709299832573,-977.77551675,0.00020313,2]
[315948896,1709299832582,-500.0,0.00020313,2]
[315948898,1709299832592,-977.77551675,0.00020313,2]
[315948899,1709299832603,-500.0,0.00020313,2]
[315948901,1709299832613,-977.77551675,0.00020313,2]
[315948902,1709299832623,-500.0,0.00020313,2]
[315948904,1709299832634,-977.77551675,0.00020313,2]
[315948906,1709299832647,-977.77551675,0.00020313,2]
[315948907,1709299832659,-500.0,0.00020313,2]
[315948908,1709299832668,-977.77551675,0.00020313,2]
[315948909,1709299832677,-500.0,0.00020313,2]
[315948910,1709299832686,-977.77551675,0.00020313,2]
[315948911,1709299832695,-500.0,0.00020313,2]
[315948913,1709299832705,-977.77551675,0.00020313,2]
[315948914,1709299832714,-977.77551675,0.00020313,2]
[315948916,1709299832724,-500.0,0.00020313,2]
[315948918,1709299832733,-500.0,0.00020313,2]
[315948920,1709299832743,-977.77551675,0.00020313,2]
[315948922,1709299832752,-500.0,0.00020313,2]
[315948923,1709299832761,-977.77551675,0.00020313,2]
[315948925,1709299832771,-977.77551675,0.00020313,2]
[315948927,1709299832780,-500.0,0.00020313,2]
[315948928,1709299832789,-977.77551675,0.00020313,2]
[315948930,1709299832798,-500.0,0.00020313,2]
[315948932,1709299832807,-977.77551675,0.00020313,2]
[315948934,1709299832817,-977.77551675,0.00020313,2]
[315948935,1709299832826,-500.0,0.00020313,2]
[315948936,1709299832836,-977.77551675,0.00020313,2]
[315948937,1709299832845,-977.77551675,0.00020313,2]
[315948938,1709299832855,-500.0,0.00020313,2]
[315948939,1709299832864,-977.77551675,0.00020313,2]
[315948940,1709299832874,-500.0,0.00020313,2]
[315948941,1709299832884,-977.77551675,0.00020313,2]
[315948942,1709299832894,-189.05549206,0.00020313,2]
[315948943,1709299832903,-500.0,0.00020313,2]
[315948944,1709299832912,-977.77551675,0.00020313,2]
[315948945,1709299832921,-977.77551675,0.00020313,2]
[315948946,1709299832930,-500.0,0.00020313,2]
[315948947,1709299832939,-977.77551675,0.00020313,2]
[315948948,1709299832948,-977.77551675,0.00020313,2]
[315948949,1709299832957,-977.77551675,0.00020313,2]
[315948950,1709299832967,-977.77551675,0.00020313,2]
[315948951,1709299832976,-977.77551675,0.00020313,2]
[315948952,1709299832985,-977.77551675,0.00020313,2]
[315948953,1709299832994,-977.77551675,0.00020313,2]
[315948954,1709299833003,-977.77551675,0.00020313,2]
[315948955,1709299833013,-977.77551675,0.00020313,2]
[315948956,1709299833022,-977.77551675,0.00020313,2]
[315948957,1709299833031,-977.77551675,0.00020313,2]
[315948958,1709299833040,-977.77551675,0.00020313,2]
[315948959,1709299833049,-977.77551675,0.00020313,2]
[315948960,1709299833060,-500.0,0.00020313,2]
[315948961,1709299833069,-600.0,0.00020313,2]
[315948962,1709299833078,-500.0,0.00020313,2]
[315948963,1709299833088,-500.0,0.00020313,2]
[315948964,1709299833097,-500.0,0.00020313,2]
[315948965,1709299833106,-500.0,0.00020313,2]
[315948966,1709299833115,-500.0,0.00020313,2]
[315948967,1709299833125,-959.99778009,0.00020313,2]
[315948968,1709299833137,-959.99778009,0.00020313,2]
[315948969,1709299833147,-959.99778009,0.00020313,2]
[315948970,1709299833156,-959.99778009,0.00020313,2]
[315948971,1709299833195,-959.99778009,0.00020313,2]
[315948972,1709299833204,-959.99778009,0.00020313,2]
[315948973,1709299833214,-959.99778009,0.00020313,2]
[315948974,1709299833224,-959.99778009,0.00020313,2]
[315948975,1709299833234,-959.99778009,0.00020313,2]
[315948976,1709299833244,-959.99778009,0.00020313,2]
[315948977,1709299833253,-959.99778009,0.00020313,2]
[315948978,1709299833263,-959.99778009,0.00020313,2]
[315948979,1709299833272,-959.99778009,0.00020313,2]
[315948980,1709299833282,-959.99778009,0.00020313,2]
[315948981,1709299833292,-959.99778009,0.00020313,2]
[315948982,1709299833301,-959.99778009,0.00020313,2]
[315948983,1709299833311,-959.99778009,0.00020313,2]
[315948984,1709299833320,-959.99778009,0.00020313,2]
[315948985,1709299833331,-959.99778009,0.00020313,2]
[315948986,1709299833340,-959.99778009,0.00020313,2]
[315948987,1709299833349,-959.99778009,0.00020313,2]
[315948988,1709299833359,-959.99778009,0.00020313,2]
[315948989,1709299833368,-959.99778009,0.00020313,2]
[315948990,1709299833377,-959.99778009,0.00020313,2]
[315948991,1709299833388,-959.99778009,0.00020313,2]
[315948992,1709299833397,-959.99778009,0.00020313,2]
[315948993,1709299833405,-959.99778009,0.00020313,2]
[315948994,1709299833415,-959.99778009,0.00020313,2]
[315948995,1709299833424,-959.99778009,0.00020313,2]
[315948996,1709299833434,-959.99778009,0.00020313,2]
[315948997,1709299833443,-959.99778009,0.00020313,2]
[315948998,1709299833453,-959.99778009,0.00020313,2]
[315948999,1709299833463,-959.99778009,0.00020313,2]
[315949000,1709299833472,-959.99778009,0.00020313,2]
[315949001,1709299833482,-959.99778009,0.00020313,2]
[315949002,1709299833491,-959.99778009,0.00020313,2]
[315949003,1709299833499,-959.99778009,0.00020313,2]
[315949004,1709299833509,-959.99778008,0.00020313,2]
[315949005,1709299833518,-959.99778008,0.00020313,2]
[315949006,1709299833527,-959.99778008,0.00020313,2]
[315949007,1709299833536,-959.99778008,0.00020313,2]
[315949008,1709299833546,-959.99778008,0.00020313,2]
[315949009,1709299833556,-959.99778008,0.00020313,2]
[315949010,1709299833566,-959.99778008,0.00020313,2]
[315949011,1709299833577,-172909.02889151,0.00020314,2]
[315949012,1709299833586,-752.69439864,0.00020447,2]
[315949013,1709299833596,-752.69439856,0.00020497,2]
[315949014,1709299833606,-151.0,0.00020544,2]
[315949015,1709299833615,-151.0,0.00020544,2]
[315949016,1709299833624,-151.0,0.00020546,2]
[315949017,1709299833634,-500.0,0.00020547,2]
[315949018,1709299833643,-500.0,0.00020547,2]
[315949019,1709299833653,-500.0,0.00020547,2]
[315949020,1709299833662,-500.54697198,0.00020547,2]
[315949021,1709299833671,-163.22533993,0.00020547,2]
[315949022,1709299833680,-500.76173628,0.00020547,2]
[315949023,1709299833689,-531.37059679,0.00020547,2]
[315949024,1709299833698,-500.0,0.00020547,2]
[315949025,1709299833707,-500.0,0.00020547,2]
[315949026,1709299833716,-500.0,0.00020547,2]
[315949027,1709299833725,-500.0,0.00020547,2]
[315949028,1709299833734,-500.0,0.00020547,2]
[315949029,1709299833744,-502.56037008,0.00020547,2]
[315949030,1709299833753,-501.12522508,0.00020547,2]
[315949031,1709299833762,-500.48761592,0.00020547,2]
[315949032,1709299833771,-500.0,0.00020547,2]
[315949033,1709299833780,-500.0,0.00020547,2]
[315949034,1709299833789,-619.68506579,0.00020547,2]
[315949035,1709299833798,-500.0,0.00020547,2]
[315949036,1709299833807,-500.0,0.00020547,2]
[315949037,1709299833816,-500.56435264,0.00020547,2]
[315949038,1709299833825,-156.34052086,0.00020547,2]
[315949039,1709299833835,-500.0,0.00020547,2]
[315949040,1709299833844,-500.0,0.00020547,2]
[315949041,1709299833853,-501.69003324,0.00020547,2]
[315949042,1709299833862,-506.38842577,0.00020547,2]
[315949043,1709299833871,-500.0,0.00020547,2]
[315949044,1709299833880,-500.0,0.00020547,2]
[315949045,1709299833890,-500.0,0.00020547,2]
[315949046,1709299833899,-504.12794573,0.00020547,2]
[315949047,1709299833909,-501.13968663,0.00020547,2]
[315949048,1709299833918,-500.55412807,0.00020547,2]
[315949049,1709299833927,-500.0,0.00020547,2]
[315949050,1709299833937,-500.0,0.00020547,2]
[315949051,1709299833946,-500.0,0.00020547,2]
[315949052,1709299833955,-500.0,0.00020547,2]
[315949053,1709299833965,-500.0,0.00020547,2]
[315949054,1709299833974,-500.0,0.00020547,2]
[315949055,1709299833984,-500.0,0.00020547,2]
[315949056,1709299833993,-500.0,0.00020547,2]
[315949057,1709299834002,-500.0,0.00020547,2]
[315949058,1709299834011,-562.16,0.00020547,2]
[315949059,1709299834020,-501.1649039,0.00020547,2]
[315949060,1709299834029,-501.0086922,0.00020547,2]
[315949061,1709299834039,-500.0,0.00020547,2]
[315949062,1709299834048,-607.75992688,0.00020547,2]
[315949063,1709299834057,-417.76711785,0.00020547,2]
[315949064,1709299834066,-588.42265142,0.00020547,2]
[315949065,1709299834075,-500.0,0.00020547,2]
[315949066,1709299834084,-500.0,0.00020547,2]
[315949067,1709299834093,-500.0,0.00020547,2]
[315949068,1709299834103,-466.15790035,0.00020547,2]
[315949069,1709299834112,-205.54795043,0.00020547,2]
[315949070,1709299834120,-502.68830674,0.00020547,2]
[315949071,1709299834130,-501.3864763,0.00020547,2]
[315949072,1709299834141,-500.0,0.00020547,2]
[315949073,1709299834150,-391.12834095,0.00020547,2]
[315949074,1709299834160,-500.0,0.00020547,2]
[315949075,1709299834169,-500.0,0.00020547,2]
[315949076,1709299834178,-501.26524108,0.00020547,2]
[315949077,1709299834188,-436.18505084,0.00020547,2]
[315949078,1709299834272,-500.0,0.00020547,2]
[315949079,1709299834282,-500.0,0.00020547,2]
[315949080,1709299834291,-500.0,0.00020547,2]
[315949081,1709299834300,-502.0883525,0.00020547,2]
[315949082,1709299834309,-500.0,0.00020547,2]
[315949083,1709299834318,-500.0,0.00020547,2]
[315949084,1709299834329,-500.0,0.00020547,2]
[315949085,1709299834337,-500.0,0.00020547,2]
[315949086,1709299834346,-500.0,0.00020547,2]
[315949087,1709299834355,-501.12177723,0.00020547,2]